{"text_format":"1","workbook":"xlsx","n_sheets":3,"sheets":["入力用","①防災センター【入力不要（自動転記）】","リスト"],"not_rendered":{"charts":0,"images":0,"macros":1,"external_links":0,"defined_names":13,"comments":0,"pivot_tables":0},"unopened":[],"bounds":{"document_bytes":16777216,"sheet_cells":100000,"rows_first":2000,"rows_last":500,"rows_between":2000,"halvings":0,"cell_chars":16384,"cell_head_chars":4096},"cells_cut":0,"cells_raw":0,"read":"whole","date_system":"1900"}

{"sheet":"入力用","index":0,"n_rows":146,"n_cols":55,"rows_kept":146,"cut":false,"hidden":false,"merged":[[37,2,37,30],[31,1,31,30],[32,1,32,30],[33,2,33,30],[34,2,34,30],[35,2,35,30],[36,2,36,30],[70,21,70,30],[70,18,70,20],[70,7,70,17],[58,4,58,6],[60,16,60,17],[59,21,59,25],[61,16,61,17],[49,0,50,13],[54,7,54,17],[53,4,53,5],[53,24,53,25],[53,18,53,20],[54,21,54,30],[53,21,53,23],[51,0,51,30],[54,18,54,20],[53,26,53,28],[79,8,79,30],[74,16,74,17],[74,19,74,20],[73,8,73,10],[73,11,73,18],[74,25,74,29],[78,16,78,30],[78,8,78,10],[74,22,74,23],[74,10,74,11],[73,19,73,21],[78,0,78,3],[73,22,73,30],[77,0,77,3],[77,8,77,9],[77,10,77,15],[77,16,77,18],[64,0,68,3],[56,0,56,3],[57,4,57,6],[59,7,59,17],[60,4,60,5],[60,0,61,3],[57,0,59,3],[56,4,56,6],[58,7,58,17],[73,0,74,3],[74,13,74,14],[74,7,74,8],[78,11,78,15],[74,4,74,5],[66,4,66,5],[62,19,62,29],[69,8,69,10],[69,11,69,21],[53,29,53,30],[54,4,54,6],[53,0,53,3],[62,0,62,3],[61,4,61,5],[62,4,62,6],[62,8,62,10],[60,19,60,20],[61,19,61,20],[58,18,58,20],[59,4,59,6],[59,28,59,29],[55,18,55,20],[55,21,55,30],[54,0,55,3],[55,4,55,6],[55,7,55,16],[62,13,62,15],[79,0,79,3],[92,19,92,21],[92,7,93,8],[92,9,93,15],[92,16,92,18],[93,16,95,18],[94,7,95,8],[93,19,95,21],[82,0,90,0],[89,21,89,28],[80,0,81,3],[80,4,80,30],[89,18,89,20],[81,4,81,30],[92,28,92,30],[92,22,92,24],[92,25,92,27],[92,0,95,6],[87,18,88,30],[82,18,86,30],[93,22,95,24],[93,25,95,27],[93,28,95,30],[94,9,95,15],[69,0,70,3],[70,4,70,6],[72,13,72,30],[71,0,72,3],[63,0,63,3],[69,26,69,28],[56,21,56,30],[59,18,59,20],[57,18,57,20],[56,18,56,20],[57,21,57,30],[57,7,57,17],[59,26,59,27],[56,7,56,17],[58,21,58,30],[69,22,69,23],[68,4,68,30],[64,12,64,19],[66,6,66,30],[67,4,67,30],[65,11,65,29],[72,4,72,6],[72,7,72,12],[76,0,76,3],[75,0,75,3],[77,19,77,23],[77,24,77,26],[76,8,76,30],[77,27,77,30],[75,8,75,30],[63,4,63,30],[2,0,2,30],[4,0,5,30],[6,0,6,3],[6,4,6,5],[6,18,6,20],[6,21,6,23],[6,24,6,25],[6,26,6,28],[6,29,6,30],[7,0,8,3],[7,4,7,6],[7,7,7,17],[7,18,7,20],[7,21,7,30],[8,4,8,6],[8,7,8,16],[8,18,8,20],[8,21,8,30],[9,0,9,3],[9,4,9,5],[9,16,9,17],[9,19,9,20],[9,23,9,24],[9,26,9,27],[10,0,10,3],[10,4,10,5],[10,16,10,17],[10,19,10,20],[10,23,10,24],[10,26,10,27],[18,4,19,30],[21,0,22,20],[21,21,22,24],[21,25,22,29],[21,30,22,30],[11,0,11,3],[11,4,11,6],[11,9,11,29],[12,0,13,3],[12,4,13,30],[14,0,15,3],[14,4,14,6],[14,8,14,10],[14,12,14,14],[14,16,14,18],[14,20,14,22],[14,24,14,26],[15,4,15,6],[15,8,15,10],[15,12,15,29],[0,0,1,10],[44,0,48,7],[44,8,48,9],[44,22,44,30],[45,19,45,21],[45,22,45,24],[38,2,38,30],[45,25,45,27],[45,28,45,30],[44,19,44,21],[44,10,48,18],[41,0,42,9],[41,10,41,18],[41,19,41,24],[41,25,42,30],[42,10,42,18],[42,19,42,24],[46,19,48,21],[46,22,48,24],[46,25,48,27],[46,28,48,30],[16,0,17,3],[16,4,17,30],[18,0,19,3]]}
["網掛部分に必要事項を記入（または選択）してください。",null,null,null,null,null,null,null,null,null,null,null,null,null,null,null,null,null,null,null,null,null,null,null,null,null,null,null,null,null,"①防災センター"]
[]
["防 災 盤 連 動 停 止 願 い 申 請 書"]
[]
["　下記の要領で作業を実施したいので許可願います。なお、設備停止の開始・終了時には必ず防災センターに報告します。"]
[]
["申 請 日",null,null,null,null,null,"年",null,"月",null,"日","（",null,"）",null,null,null,null,"作業区分",null,null,"ビル作業",null,null,null,null,"ﾃﾅﾝﾄ作業"]
["設備停止依頼者",null,null,null,"会 社 名",null,null,null,null,null,null,null,null,null,null,null,null,null,"会社電話"]
[null,null,null,null,"責任者名",null,null,null,null,null,null,null,null,null,null,null,null,"㊞","携帯電話"]
["作業日時",null,null,null,null,null,"年",null,"月",null,"日","（",null,"）",null,null,null,null,"時",null,null,"分","から",null,null,"時",null,null,"分","まで"]
["停止日時",null,null,null,null,null,"年",null,"月",null,"日","（",null,"）",null,null,null,null,"時",null,null,"分","から",null,null,"時",null,null,"分","まで"]
["作業場所",null,null,null,null,null,null,"階","（",null,null,null,null,null,null,null,null,null,null,null,null,null,null,null,null,null,null,null,null,null,"）"]
["作業内容\n（停止理由）"]
[]
["設備停止が\n必要な設備",null,null,null,"自火報：",null,null,null,"非常放送：",null,null,null,"スプリンクラー：",null,null,null,"屋内消火栓：",null,null,null,"エレベータ：",null,null,null,"非常電話："]
[null,null,null,null,"セキュリティ：",null,null,null,"その他：",null,null,"（",null,null,null,null,null,null,null,null,null,null,null,null,null,null,null,null,null,null,"）"]
["防火管理方法"]
[]
["特記事項"]
[]
[]
["統括防火管理者・防火管理技能者・防災センター・消防職員から指示があった場合\nまた、火災等の緊急時は、防災盤連動停止依頼を取り下げます。",null,null,null,null,null,null,null,null,null,null,null,null,null,null,null,null,null,null,null,null,"依頼責任者：",null,null,null,null,null,null,null,null,"㊞"]
[]
["【遵守事項】"]
[null,"1.","作業開始前および作業終了後に必ず防災センターに連絡を行うこと。"]
[null,"2.","長時間の作業の場合は、防災センターおよびオフィスと事前に打ち合わせを行い、"]
[null,null,"作業実施日の５営業日前までに作業計画書を提出すること。"]
[null,"3.","本届出用紙を提出する際は、同内容の作業許可証と併せて提出すること。"]
[null,"4.","必要に応じ所轄消防署と協議・報告すること。"]
[null,"5.","停止・復旧の操作は依頼責任者と防災センタースタッフ双方の立会いで確認・操作すること。"]
[]
[null,"個人情報の取扱いについて"]
[null,"三井不動産ビルマネジメント株式会社は、お預かりした個人情報について、以下のとおり取扱います。同意の上ご提出をお願いいたします。"]
[null,"1.","ビルの運営管理上、作業内容の把握および作業許可・変更指示、その他作業にともなう対応を行うために個人情報を収集、"]
[null,null,"利用させていただきます。"]
[null,"2.","個人情報を利用するにあたり、上記目的のため設備会社、警備会社、清掃会社、所有者、賃貸人に対し個人情報を委託することがございます。"]
[null,null,"記載以外に委託はいたしません。"]
[null,"3.","個人情報は当社HPで公開している個人情報保護方針に従い、適切な安全管理対策を行います。"]
[null,null,"（当社HP：https://www.mfbm.co.jp/privacy/）"]
[]
[]
[]
[]
[]
["日本橋髙島屋三井ビルディング\n防災センター\n　\nＴＥＬ：03-3272-0511\nFAX：03-3272-0517",null,null,null,null,null,null,null,"承認日",null,"年　　　月　　　日",null,null,null,null,null,null,null,null,"防火担当者",null,null,"防災センター"]
[null,null,null,null,null,null,null,null,null,null,null,null,null,null,null,null,null,null,null,"防火管理技能者",null,null,"設備",null,null,"警備",null,null,"受付者"]
[]
[]
[]
[]
[]
[]
[]
[]
[]
[]
[]
[]
[]
[]
[]
[]
[]
[]
[]
[]
[]
[]
[]
[]
[]
[]
[]
[]
[]
[]
[]
[]
[]
[]
[]
[]
[]
[]
[]
[]
[]
[]
[]
[]
[]
[]
[]
[]
[null,null,null,null,null,null,null,null,null,null,null,null,null,null,null,null,null,null,null,null,null,null,null,null,null,null,null,null,null,null,null,null,null,null,null,null,null,null,null,null,null,null,null,null,null,null,"【リスト】"]
[null,null,null,null,null,null,null,null,null,null,null,null,null,null,null,null,null,null,null,null,null,null,null,null,null,null,null,null,null,null,null,null,null,null,null,null,null,null,null,null,null,null,null,null,null,null,null,"年","月","日","曜","階","時","分","側"]
[null,null,null,null,null,null,null,null,null,null,null,null,null,null,null,null,null,null,null,null,null,null,null,null,null,null,null,null,null,null,null,null,null,null,null,null,null,null,null,null,null,null,null,null,null,null,1,2018,1,1,"月","B5",0,0,"東"]
[null,null,null,null,null,null,null,null,null,null,null,null,null,null,null,null,null,null,null,null,null,null,null,null,null,null,null,null,null,null,null,null,null,null,null,null,null,null,null,null,null,null,null,null,null,null,2,2019,2,2,"火","B4",1,5,"南"]
[null,null,null,null,null,null,null,null,null,null,null,null,null,null,null,null,null,null,null,null,null,null,null,null,null,null,null,null,null,null,null,null,null,null,null,null,null,null,null,null,null,null,null,null,null,null,3,2020,3,3,"水","B3",2,10,"西"]
[null,null,null,null,null,null,null,null,null,null,null,null,null,null,null,null,null,null,null,null,null,null,null,null,null,null,null,null,null,null,null,null,null,null,null,null,null,null,null,null,null,null,null,null,null,null,4,2021,4,4,"木","B2",3,15,"北"]
[null,null,null,null,null,null,null,null,null,null,null,null,null,null,null,null,null,null,null,null,null,null,null,null,null,null,null,null,null,null,null,null,null,null,null,null,null,null,null,null,null,null,null,null,null,null,5,2022,5,5,"金","B1",4,20]
[null,null,null,null,null,null,null,null,null,null,null,null,null,null,null,null,null,null,null,null,null,null,null,null,null,null,null,null,null,null,null,null,null,null,null,null,null,null,null,null,null,null,null,null,null,null,6,2023,6,6,"土",1,5,25]
[null,null,null,null,null,null,null,null,null,null,null,null,null,null,null,null,null,null,null,null,null,null,null,null,null,null,null,null,null,null,null,null,null,null,null,null,null,null,null,null,null,null,null,null,null,null,7,2024,7,7,"日",2,6,30]
[null,null,null,null,null,null,null,null,null,null,null,null,null,null,null,null,null,null,null,null,null,null,null,null,null,null,null,null,null,null,null,null,null,null,null,null,null,null,null,null,null,null,null,null,null,null,8,2025,8,8,null,3,7,35]
[null,null,null,null,null,null,null,null,null,null,null,null,null,null,null,null,null,null,null,null,null,null,null,null,null,null,null,null,null,null,null,null,null,null,null,null,null,null,null,null,null,null,null,null,null,null,9,2026,9,9,null,4,8,40]
[null,null,null,null,null,null,null,null,null,null,null,null,null,null,null,null,null,null,null,null,null,null,null,null,null,null,null,null,null,null,null,null,null,null,null,null,null,null,null,null,null,null,null,null,null,null,10,2027,10,10,null,5,9,45]
[null,null,null,null,null,null,null,null,null,null,null,null,null,null,null,null,null,null,null,null,null,null,null,null,null,null,null,null,null,null,null,null,null,null,null,null,null,null,null,null,null,null,null,null,null,null,11,2028,11,11,null,6,10,50]
[null,null,null,null,null,null,null,null,null,null,null,null,null,null,null,null,null,null,null,null,null,null,null,null,null,null,null,null,null,null,null,null,null,null,null,null,null,null,null,null,null,null,null,null,null,null,12,2029,12,12,null,7,11,55]
[null,null,null,null,null,null,null,null,null,null,null,null,null,null,null,null,null,null,null,null,null,null,null,null,null,null,null,null,null,null,null,null,null,null,null,null,null,null,null,null,null,null,null,null,null,null,13,2030,null,13,null,8,12]
[null,null,null,null,null,null,null,null,null,null,null,null,null,null,null,null,null,null,null,null,null,null,null,null,null,null,null,null,null,null,null,null,null,null,null,null,null,null,null,null,null,null,null,null,null,null,14,2031,null,14,null,9,13]
[null,null,null,null,null,null,null,null,null,null,null,null,null,null,null,null,null,null,null,null,null,null,null,null,null,null,null,null,null,null,null,null,null,null,null,null,null,null,null,null,null,null,null,null,null,null,15,2032,null,15,null,10,14]
[null,null,null,null,null,null,null,null,null,null,null,null,null,null,null,null,null,null,null,null,null,null,null,null,null,null,null,null,null,null,null,null,null,null,null,null,null,null,null,null,null,null,null,null,null,null,16,2033,null,16,null,11,15]
[null,null,null,null,null,null,null,null,null,null,null,null,null,null,null,null,null,null,null,null,null,null,null,null,null,null,null,null,null,null,null,null,null,null,null,null,null,null,null,null,null,null,null,null,null,null,17,2034,null,17,null,12,16]
[null,null,null,null,null,null,null,null,null,null,null,null,null,null,null,null,null,null,null,null,null,null,null,null,null,null,null,null,null,null,null,null,null,null,null,null,null,null,null,null,null,null,null,null,null,null,18,2035,null,18,null,13,17]
[null,null,null,null,null,null,null,null,null,null,null,null,null,null,null,null,null,null,null,null,null,null,null,null,null,null,null,null,null,null,null,null,null,null,null,null,null,null,null,null,null,null,null,null,null,null,19,2036,null,19,null,14,18]
[null,null,null,null,null,null,null,null,null,null,null,null,null,null,null,null,null,null,null,null,null,null,null,null,null,null,null,null,null,null,null,null,null,null,null,null,null,null,null,null,null,null,null,null,null,null,20,2037,null,20,null,15,19]
[null,null,null,null,null,null,null,null,null,null,null,null,null,null,null,null,null,null,null,null,null,null,null,null,null,null,null,null,null,null,null,null,null,null,null,null,null,null,null,null,null,null,null,null,null,null,21,2038,null,21,null,16,20]
[null,null,null,null,null,null,null,null,null,null,null,null,null,null,null,null,null,null,null,null,null,null,null,null,null,null,null,null,null,null,null,null,null,null,null,null,null,null,null,null,null,null,null,null,null,null,22,2039,null,22,null,17,21]
[null,null,null,null,null,null,null,null,null,null,null,null,null,null,null,null,null,null,null,null,null,null,null,null,null,null,null,null,null,null,null,null,null,null,null,null,null,null,null,null,null,null,null,null,null,null,23,2040,null,23,null,18,22]
[null,null,null,null,null,null,null,null,null,null,null,null,null,null,null,null,null,null,null,null,null,null,null,null,null,null,null,null,null,null,null,null,null,null,null,null,null,null,null,null,null,null,null,null,null,null,24,2041,null,24,null,19,23]
[null,null,null,null,null,null,null,null,null,null,null,null,null,null,null,null,null,null,null,null,null,null,null,null,null,null,null,null,null,null,null,null,null,null,null,null,null,null,null,null,null,null,null,null,null,null,25,2042,null,25,null,20]
[null,null,null,null,null,null,null,null,null,null,null,null,null,null,null,null,null,null,null,null,null,null,null,null,null,null,null,null,null,null,null,null,null,null,null,null,null,null,null,null,null,null,null,null,null,null,26,2043,null,26,null,21]
[null,null,null,null,null,null,null,null,null,null,null,null,null,null,null,null,null,null,null,null,null,null,null,null,null,null,null,null,null,null,null,null,null,null,null,null,null,null,null,null,null,null,null,null,null,null,27,2044,null,27,null,22]
[null,null,null,null,null,null,null,null,null,null,null,null,null,null,null,null,null,null,null,null,null,null,null,null,null,null,null,null,null,null,null,null,null,null,null,null,null,null,null,null,null,null,null,null,null,null,28,2045,null,28,null,23]
[null,null,null,null,null,null,null,null,null,null,null,null,null,null,null,null,null,null,null,null,null,null,null,null,null,null,null,null,null,null,null,null,null,null,null,null,null,null,null,null,null,null,null,null,null,null,29,2046,null,29,null,24]
[null,null,null,null,null,null,null,null,null,null,null,null,null,null,null,null,null,null,null,null,null,null,null,null,null,null,null,null,null,null,null,null,null,null,null,null,null,null,null,null,null,null,null,null,null,null,30,2047,null,30,null,25]
[null,null,null,null,null,null,null,null,null,null,null,null,null,null,null,null,null,null,null,null,null,null,null,null,null,null,null,null,null,null,null,null,null,null,null,null,null,null,null,null,null,null,null,null,null,null,31,2048,null,31,null,26]
[null,null,null,null,null,null,null,null,null,null,null,null,null,null,null,null,null,null,null,null,null,null,null,null,null,null,null,null,null,null,null,null,null,null,null,null,null,null,null,null,null,null,null,null,null,null,32,2049,null,null,null,27]
[null,null,null,null,null,null,null,null,null,null,null,null,null,null,null,null,null,null,null,null,null,null,null,null,null,null,null,null,null,null,null,null,null,null,null,null,null,null,null,null,null,null,null,null,null,null,33,2050,null,null,null,28]
[null,null,null,null,null,null,null,null,null,null,null,null,null,null,null,null,null,null,null,null,null,null,null,null,null,null,null,null,null,null,null,null,null,null,null,null,null,null,null,null,null,null,null,null,null,null,34,2051,null,null,null,29]
[null,null,null,null,null,null,null,null,null,null,null,null,null,null,null,null,null,null,null,null,null,null,null,null,null,null,null,null,null,null,null,null,null,null,null,null,null,null,null,null,null,null,null,null,null,null,35,2052,null,null,null,30]
[null,null,null,null,null,null,null,null,null,null,null,null,null,null,null,null,null,null,null,null,null,null,null,null,null,null,null,null,null,null,null,null,null,null,null,null,null,null,null,null,null,null,null,null,null,null,36,2053,null,null,null,31]
[null,null,null,null,null,null,null,null,null,null,null,null,null,null,null,null,null,null,null,null,null,null,null,null,null,null,null,null,null,null,null,null,null,null,null,null,null,null,null,null,null,null,null,null,null,null,37,2054,null,null,null,32]
[null,null,null,null,null,null,null,null,null,null,null,null,null,null,null,null,null,null,null,null,null,null,null,null,null,null,null,null,null,null,null,null,null,null,null,null,null,null,null,null,null,null,null,null,null,null,38,2055,null,null,null,"PH"]
[null,null,null,null,null,null,null,null,null,null,null,null,null,null,null,null,null,null,null,null,null,null,null,null,null,null,null,null,null,null,null,null,null,null,null,null,null,null,null,null,null,null,null,null,null,null,39,2056]
[null,null,null,null,null,null,null,null,null,null,null,null,null,null,null,null,null,null,null,null,null,null,null,null,null,null,null,null,null,null,null,null,null,null,null,null,null,null,null,null,null,null,null,null,null,null,40,2057]
[null,null,null,null,null,null,null,null,null,null,null,null,null,null,null,null,null,null,null,null,null,null,null,null,null,null,null,null,null,null,null,null,null,null,null,null,null,null,null,null,null,null,null,null,null,null,41,2058]
[null,null,null,null,null,null,null,null,null,null,null,null,null,null,null,null,null,null,null,null,null,null,null,null,null,null,null,null,null,null,null,null,null,null,null,null,null,null,null,null,null,null,null,null,null,null,42,2059]
[null,null,null,null,null,null,null,null,null,null,null,null,null,null,null,null,null,null,null,null,null,null,null,null,null,null,null,null,null,null,null,null,null,null,null,null,null,null,null,null,null,null,null,null,null,null,43,2060]
[null,null,null,null,null,null,null,null,null,null,null,null,null,null,null,null,null,null,null,null,null,null,null,null,null,null,null,null,null,null,null,null,null,null,null,null,null,null,null,null,null,null,null,null,null,null,44,2061]
[null,null,null,null,null,null,null,null,null,null,null,null,null,null,null,null,null,null,null,null,null,null,null,null,null,null,null,null,null,null,null,null,null,null,null,null,null,null,null,null,null,null,null,null,null,null,45,2062]
[null,null,null,null,null,null,null,null,null,null,null,null,null,null,null,null,null,null,null,null,null,null,null,null,null,null,null,null,null,null,null,null,null,null,null,null,null,null,null,null,null,null,null,null,null,null,46,2063]
[null,null,null,null,null,null,null,null,null,null,null,null,null,null,null,null,null,null,null,null,null,null,null,null,null,null,null,null,null,null,null,null,null,null,null,null,null,null,null,null,null,null,null,null,null,null,47,2064]
[null,null,null,null,null,null,null,null,null,null,null,null,null,null,null,null,null,null,null,null,null,null,null,null,null,null,null,null,null,null,null,null,null,null,null,null,null,null,null,null,null,null,null,null,null,null,48,2065]
[null,null,null,null,null,null,null,null,null,null,null,null,null,null,null,null,null,null,null,null,null,null,null,null,null,null,null,null,null,null,null,null,null,null,null,null,null,null,null,null,null,null,null,null,null,null,49,2066]
[null,null,null,null,null,null,null,null,null,null,null,null,null,null,null,null,null,null,null,null,null,null,null,null,null,null,null,null,null,null,null,null,null,null,null,null,null,null,null,null,null,null,null,null,null,null,50,2067]

{"sheet":"①防災センター【入力不要（自動転記）】","index":1,"n_rows":50,"n_cols":67,"rows_kept":50,"cut":false,"hidden":false,"merged":[[2,0,2,30],[4,0,5,30],[6,0,6,3],[6,4,6,5],[6,18,6,20],[6,21,6,23],[6,24,6,25],[6,26,6,28],[6,29,6,30],[7,0,8,3],[7,4,7,6],[7,7,7,17],[7,18,7,20],[7,21,7,30],[8,4,8,6],[8,7,8,16],[8,18,8,20],[8,21,8,30],[9,26,9,27],[10,0,10,3],[10,4,10,5],[10,16,10,17],[10,19,10,20],[10,23,10,24],[10,26,10,27],[9,0,9,3],[9,4,9,5],[9,16,9,17],[9,19,9,20],[9,23,9,24],[11,0,11,3],[11,4,11,6],[11,9,11,29],[12,0,13,3],[12,4,13,30],[14,0,15,3],[14,4,14,6],[14,8,14,10],[14,12,14,14],[14,16,14,18],[14,20,14,22],[14,24,14,26],[15,4,15,6],[15,8,15,10],[15,12,15,29],[38,2,38,30],[16,0,17,3],[16,4,17,30],[18,0,19,3],[18,4,19,30],[21,0,22,20],[21,21,22,24],[21,25,22,29],[21,30,22,30],[37,2,37,30],[31,1,31,30],[32,1,32,30],[33,2,33,30],[34,2,34,30],[35,2,35,30],[36,2,36,30],[41,0,42,9],[41,10,41,18],[41,19,41,24],[41,25,42,30],[42,10,42,18],[42,19,42,24],[44,0,48,7],[44,8,48,9],[44,22,44,30],[45,19,45,21],[45,22,45,24],[45,25,45,27],[45,28,45,30],[44,19,44,21],[44,10,48,18],[46,19,48,21],[46,22,48,24],[46,25,48,27],[46,28,48,30]]}
[null,null,null,null,null,null,null,null,null,null,null,null,null,null,null,null,null,null,null,null,null,null,null,null,null,null,null,null,null,null,"①防災センター"]
["日本橋髙島屋三井ビル　防災センター　御中"]
["防 災 盤 連 動 停 止 願 い 申 請 書"]
[]
["　下記の要領で作業を実施したいので許可願います。なお、設備停止の開始・終了時には必ず防災センターに報告します。"]
[]
["申 請 日",null,null,null,{"$f":"IF(入力用!E7=\"\",\"\",入力用!E7)","v":""},null,"年",{"$f":"IF(入力用!H7=\"\",\"\",入力用!H7)","v":""},"月",{"$f":"IF(入力用!J7=\"\",\"\",入力用!J7)","v":""},"日","（",{"$f":"IF(入力用!M7=\"\",\"\",入力用!M7)","v":""},"）",null,null,null,null,"作業区分",null,null,"ビル作業",null,null,{"$f":"IF(入力用!Y7=\"\",\"\",入力用!Y7)","v":""},null,"ﾃﾅﾝﾄ作業",null,null,{"$f":"IF(入力用!AD7=\"\",\"\",入力用!AD7)","v":""}]
["設備停止依頼者",null,null,null,"会 社 名",null,null,{"$f":"IF(入力用!H8=\"\",\"\",入力用!H8)","v":""},null,null,null,null,null,null,null,null,null,null,"会社電話",null,null,{"$f":"IF(入力用!V8=\"\",\"\",入力用!V8)","v":""}]
[null,null,null,null,"責任者名",null,null,{"$f":"IF(入力用!H9=\"\",\"\",入力用!H9)","v":""},null,null,null,null,null,null,null,null,null,"㊞","携帯電話",null,null,{"$f":"IF(入力用!V9=\"\",\"\",入力用!V9)","v":""}]
["作業日時",null,null,null,{"$f":"IF(入力用!E10=\"\",\"\",入力用!E10)","v":""},null,"年",{"$f":"IF(入力用!H10=\"\",\"\",入力用!H10)","v":""},"月",{"$f":"IF(入力用!J10=\"\",\"\",入力用!J10)","v":""},"日","（",{"$f":"IF(入力用!M10=\"\",\"\",入力用!M10)","v":""},"）",null,null,{"$f":"IF(入力用!Q10=\"\",\"\",入力用!Q10)","v":""},{"$error":"#REF!"},"時",{"$f":"IF(入力用!T10=\"\",\"\",入力用!T10)","v":""},{"$error":"#REF!"},"分","から",{"$f":"IF(入力用!X10=\"\",\"\",入力用!X10)","v":""},{"$error":"#REF!"},"時",{"$f":"IF(入力用!AA10=\"\",\"\",入力用!AA10)","v":""},{"$error":"#REF!"},"分","まで"]
["停止日時",null,null,null,{"$f":"IF(入力用!E11=\"\",\"\",入力用!E11)","v":""},null,"年",{"$f":"IF(入力用!H11=\"\",\"\",入力用!H11)","v":""},"月",{"$f":"IF(入力用!J11=\"\",\"\",入力用!J11)","v":""},"日","（",{"$f":"IF(入力用!M11=\"\",\"\",入力用!M11)","v":""},"）",null,null,{"$f":"IF(入力用!Q11=\"\",\"\",入力用!Q11)","v":""},{"$error":"#REF!"},"時",{"$f":"IF(入力用!T11=\"\",\"\",入力用!T11)","v":""},{"$error":"#REF!"},"分","から",{"$f":"IF(入力用!X11=\"\",\"\",入力用!X11)","v":""},{"$error":"#REF!"},"時",{"$f":"IF(入力用!AA11=\"\",\"\",入力用!AA11)","v":""},{"$error":"#REF!"},"分","まで"]
["作業場所",null,null,null,{"$f":"IF(入力用!E12=\"\",\"\",入力用!E12)","v":""},null,null,"階","（",{"$f":"IF(入力用!J12=\"\",\"\",入力用!J12)","v":""},{"$error":"#REF!"},{"$error":"#REF!"},{"$error":"#REF!"},{"$error":"#REF!"},{"$error":"#REF!"},{"$error":"#REF!"},{"$error":"#REF!"},{"$error":"#REF!"},{"$error":"#REF!"},{"$error":"#REF!"},{"$error":"#REF!"},{"$error":"#REF!"},{"$error":"#REF!"},{"$error":"#REF!"},{"$error":"#REF!"},{"$error":"#REF!"},{"$error":"#REF!"},{"$error":"#REF!"},{"$error":"#REF!"},{"$error":"#REF!"},"）"]
["作業内容\n（停止理由）",null,null,null,{"$f":"IF(入力用!E13=\"\",\"\",入力用!E13)","v":""}]
[]
["設備停止が\n必要な設備",null,null,null,"自火報：",null,null,{"$f":"IF(入力用!H15=\"\",\"\",入力用!H15)","v":""},"非常放送：",null,null,{"$f":"IF(入力用!L15=\"\",\"\",入力用!L15)","v":""},"スプリンクラー：",null,null,{"$f":"IF(入力用!P15=\"\",\"\",入力用!P15)","v":""},"屋内消火栓：",null,null,{"$f":"IF(入力用!T15=\"\",\"\",入力用!T15)","v":""},"エレベータ：",null,null,{"$f":"IF(入力用!X15=\"\",\"\",入力用!X15)","v":""},"非常電話：",null,null,{"$f":"IF(入力用!AB15=\"\",\"\",入力用!AB15)","v":""}]
[null,null,null,null,"セキュリティ：",null,null,{"$f":"IF(入力用!H16=\"\",\"\",入力用!H16)","v":""},"その他：",null,null,"（",{"$f":"IF(入力用!M16=\"\",\"\",入力用!M16)","v":""},null,null,null,null,null,null,null,null,null,null,null,null,null,null,null,null,null,"）"]
["防火管理方法",null,null,null,{"$f":"IF(入力用!E17=\"\",\"\",入力用!E17)","v":""}]
[]
["特記事項",null,null,null,{"$f":"IF(入力用!E19=\"\",\"\",入力用!E19)","v":""}]
[]
[]
["統括防火管理者・防火管理技能者・防災センター・消防職員　から指示があった場合\nまた、火災等の緊急時は、防災盤連動停止依頼を取り下げます。",null,null,null,null,null,null,null,null,null,null,null,null,null,null,null,null,null,null,null,null,"依頼責任者：",null,null,null,null,null,null,null,null,"㊞"]
[]
["【遵守事項】"]
[null,"1.","作業開始前および作業終了後に必ず防災センターに連絡を行うこと。"]
[null,"2.","長時間の作業の場合は、防災センターおよびオフィスと事前に打ち合わせを行い、"]
[null,null,"作業実施日の５営業日前までに作業計画書を提出すること。"]
[null,"3.","本届出用紙を提出する際は、同内容の作業許可証と併せて提出すること。"]
[null,"4.","必要に応じ所轄消防署と協議・報告すること。"]
[null,"5.","停止・復旧の操作は依頼責任者と防災センタースタッフ双方の立会いで確認・操作すること。"]
[]
[null,"個人情報の取扱いについて"]
[null,"三井不動産ビルマネジメント株式会社は、お預かりした個人情報について、以下のとおり取扱います。同意の上ご提出をお願いいたします。"]
[null,"1.","ビルの運営管理上、作業内容の把握および作業許可・変更指示、その他作業にともなう対応を行うために個人情報を収集、"]
[null,null,"利用させていただきます。"]
[null,"2.","個人情報を利用するにあたり、上記目的のため設備会社、警備会社、清掃会社、所有者、賃貸人に対し個人情報を委託することがございます。"]
[null,null,"記載以外に委託はいたしません。"]
[null,"3.","個人情報は当社HPで公開している個人情報保護方針に従い、適切な安全管理対策を行います。"]
[null,null,"（当社HP：https://www.mfbm.co.jp/privacy/）"]
[]
[]
[]
[]
[]
["日本橋髙島屋三井ビルディング\n防災センター\n　\nＴＥＬ：03-3272-0511\nFAX：03-3272-0517",null,null,null,null,null,null,null,"承認日",null,"年　　　月　　　日",null,null,null,null,null,null,null,null,"防火担当者",null,null,"防災センター"]
[null,null,null,null,null,null,null,null,null,null,null,null,null,null,null,null,null,null,null,"防火管理技能者",null,null,"設備",null,null,"警備",null,null,"受付者"]
[]
[]
[]
[null,null,null,null,null,null,null,null,null,null,null,null,null,null,null,null,null,null,null,null,null,null,null,null,null,null,null,null,null,null,null,null,null,null,null,null,null,null,null,null,null,null,null,null,null,null,null,null,null,null,null,null,null,null,null,null,null,null,null,null,null,null,null,null,null,50,2057]

{"sheet":"リスト","index":2,"n_rows":52,"n_cols":10,"rows_kept":52,"cut":false,"hidden":false,"merged":[]}
["【リスト】"]
[null,"年","月","日","曜","階","時","分","側"]
[1,2018,1,1,"月","B5",0,0,"東","○"]
[2,2019,2,2,"火","B4",1,5,"南"]
[3,2020,3,3,"水","B3",2,10,"西"]
[4,2021,4,4,"木","B2",3,15,"北"]
[5,2022,5,5,"金","B1",4,20]
[6,2023,6,6,"土",1,5,25]
[7,2024,7,7,"日",2,6,30]
[8,2025,8,8,null,3,7,35]
[9,2026,9,9,null,4,8,40]
[10,2027,10,10,null,5,9,45]
[11,2028,11,11,null,6,10,50]
[12,2029,12,12,null,7,11,55]
[13,2030,null,13,null,8,12]
[14,2031,null,14,null,9,13]
[15,2032,null,15,null,10,14]
[16,2033,null,16,null,11,15]
[17,2034,null,17,null,12,16]
[18,2035,null,18,null,13,17]
[19,2036,null,19,null,14,18]
[20,2037,null,20,null,15,19]
[21,2038,null,21,null,16,20]
[22,2039,null,22,null,17,21]
[23,2040,null,23,null,18,22]
[24,2041,null,24,null,19,23]
[25,2042,null,25,null,20]
[26,2043,null,26,null,21]
[27,2044,null,27,null,22]
[28,2045,null,28,null,23]
[29,2046,null,29,null,24]
[30,2047,null,30,null,25]
[31,2048,null,31,null,26]
[32,2049,null,null,null,27]
[33,2050,null,null,null,28]
[34,2051,null,null,null,29]
[35,2052,null,null,null,30]
[36,2053,null,null,null,31]
[37,2054,null,null,null,32]
[38,2055,null,null,null,"PH"]
[39,2056]
[40,2057]
[41,2058]
[42,2059]
[43,2060]
[44,2061]
[45,2062]
[46,2063]
[47,2064]
[48,2065]
[49,2066]
[50,2067]